[Event "Early-Titled-Tuesday-Blitz-April-23-2024"]
[Site "Chess.com"]
[Date "2024.04.23"]
[Round "1"]
[White "zurzan"]
[Black "slorovel"]
[Result "1-0"]
[WhiteElo "2111"]
[BlackElo "2574"]
[TimeControl "180+1"]
[EndTime "8:07:39 PDT"]
[Termination "zurzan won by resignation"]

1. c4 {[%clk 0:03:00.9]} 1... b6 {[%clk 0:02:56]} 2. Nc3 {[%clk 0:02:56.5]} 2...
Bb7 {[%clk 0:02:56]} 3. d4 {[%clk 0:02:57.2]} 3... e6 {[%clk 0:02:53.8]} 4. a3
{[%clk 0:02:57.5]} 4... f5 {[%clk 0:02:54]} 5. Nf3 {[%clk 0:02:57]} 5... Nf6
{[%clk 0:02:54.1]} 6. g3 {[%clk 0:02:52.8]} 6... Be7 {[%clk 0:02:49.7]} 7. Bg2
{[%clk 0:02:52.7]} 7... O-O {[%clk 0:02:49.7]} 8. O-O {[%clk 0:02:52]} 8... d6
{[%clk 0:02:49.9]} 9. b4 {[%clk 0:02:50]} 9... Nbd7 {[%clk 0:02:48.8]} 10. Nd2
{[%clk 0:02:31.9]} 10... Bxg2 {[%clk 0:02:48.1]} 11. Kxg2 {[%clk 0:02:32.8]}
11... Qc8 {[%clk 0:02:41.7]} 12. e4 {[%clk 0:02:31.6]} 12... fxe4 {[%clk
0:02:40]} 13. Ndxe4 {[%clk 0:02:31.5]} 13... Nxe4 {[%clk 0:02:37.9]} 14. Nxe4
{[%clk 0:02:31]} 14... Qb7 {[%clk 0:02:38.2]} 15. f3 {[%clk 0:02:22.8]} 15...
Nf6 {[%clk 0:02:37.1]} 16. Qd3 {[%clk 0:02:16.5]} 16... Rae8 {[%clk 0:02:17.2]}
17. Bb2 {[%clk 0:02:09.6]} 17... d5 {[%clk 0:02:12.9]} 18. Ng5 {[%clk
0:01:57.1]} 18... Bd8 {[%clk 0:02:08.9]} 19. c5 {[%clk 0:01:52.7]} 19... h6
{[%clk 0:02:07.9]} 20. Nh3 {[%clk 0:01:51.1]} 20... bxc5 {[%clk 0:02:00.8]} 21.
dxc5 {[%clk 0:01:50.5]} 21... e5 {[%clk 0:02:01]} 22. Rae1 {[%clk 0:01:45.8]}
22... e4 {[%clk 0:01:55.8]} 23. Qb1 {[%clk 0:01:11.5]} 23... a5 {[%clk
0:01:42.5]} 24. Nf4 {[%clk 0:01:02.2]} 24... axb4 {[%clk 0:01:37]} 25. axb4
{[%clk 0:01:01.3]} 25... exf3+ {[%clk 0:01:30.2]} 26. Rxf3 {[%clk 0:00:58.8]}
26... Rxe1 {[%clk 0:01:28.6]} 27. Qxe1 {[%clk 0:00:58.8]} 27... Qxb4 {[%clk
0:01:28.5]} 28. Qe6+ {[%clk 0:00:58]} 28... Rf7 {[%clk 0:00:56.4]} 29. Bxf6
{[%clk 0:00:57.5]} 29... Bxf6 {[%clk 0:00:43.7]} 30. Nxd5 {[%clk 0:00:54.1]}
30... Qb2+ {[%clk 0:00:33.1]} 31. Rf2 {[%clk 0:00:52.9]} 31... Qd4 {[%clk
0:00:12.8]} 32. Nxf6+ {[%clk 0:00:47.1]} 32... gxf6 {[%clk 0:00:12.1]} 33. Rf5
{[%clk 0:00:37.6]} 33... Kg7 {[%clk 0:00:11.1]} 34. Qd5 {[%clk 0:00:25.4]} 34...
Qb2+ {[%clk 0:00:10.2]} 35. Kh3 {[%clk 0:00:24.9]} 35... Re7 {[%clk 0:00:10.2]}
36. Qf3 {[%clk 0:00:18.7]} 36... Qd4 {[%clk 0:00:08.5]} 37. Qg4+ {[%clk
0:00:16.9]} 37... Qxg4+ {[%clk 0:00:08.5]} 38. Kxg4 {[%clk 0:00:17.8]} 38... Kg6
{[%clk 0:00:08.4]} 39. Rd5 {[%clk 0:00:17.7]} 39... Re5 {[%clk 0:00:05.5]} 40.
Rxe5 {[%clk 0:00:14.4]} 40... fxe5 {[%clk 0:00:06.4]} 41. Kf3 {[%clk 0:00:14.2]}
41... Kf5 {[%clk 0:00:06.1]} 42. h3 {[%clk 0:00:14.2]} 42... c6 {[%clk
0:00:04.1]} 43. Ke3 {[%clk 0:00:13.6]} 43... h5 {[%clk 0:00:03.7]} 44. g4+
{[%clk 0:00:12.6]} 44... hxg4 {[%clk 0:00:03.4]} 45. hxg4+ {[%clk 0:00:13.5]}
45... Kxg4 {[%clk 0:00:02.1]} 46. Ke4 {[%clk 0:00:14.4]} 46... Kg5 {[%clk
0:00:02.6]} 47. Kxe5 {[%clk 0:00:14.6]} 47... Kg6 {[%clk 0:00:03.5]} 48. Kd6
{[%clk 0:00:15]} 48... Kf7 {[%clk 0:00:04.4]} 49. Kxc6 {[%clk 0:00:15.6]} 49...
Ke8 {[%clk 0:00:05.3]} 50. Kb7 {[%clk 0:00:16.2]} 50... Kd8 {[%clk 0:00:06.2]}
1-0

[Event "Early-Titled-Tuesday-Blitz-April-23-2024"]
[Site "Chess.com"]
[Date "2024.04.23"]
[Round "1"]
[White "Kyrko_Gamba"]
[Black "kids2010"]
[Result "0-1"]
[WhiteElo "2445"]
[BlackElo "2776"]
[TimeControl "180+1"]
[EndTime "8:07:40 PDT"]
[Termination "kids2010 won by checkmate"]

1. e4 {[%clk 0:03:00.9]} 1... c5 {[%clk 0:02:59.8]} 2. Nf3 {[%clk 0:03:00.5]}
2... e6 {[%clk 0:02:59.5]} 3. d4 {[%clk 0:03:00.1]} 3... cxd4 {[%clk 0:03:00.4]}
4. Nxd4 {[%clk 0:03:00.6]} 4... Nc6 {[%clk 0:03:00.9]} 5. Nc3 {[%clk 0:02:59.8]}
5... Qc7 {[%clk 0:02:58.2]} 6. g3 {[%clk 0:02:59.7]} 6... a6 {[%clk 0:02:56.3]}
7. Bg2 {[%clk 0:02:59.1]} 7... Nf6 {[%clk 0:02:56.4]} 8. O-O {[%clk 0:02:59.2]}
8... Nxd4 {[%clk 0:02:55.6]} 9. Qxd4 {[%clk 0:02:59.8]} 9... Bc5 {[%clk
0:02:55.7]} 10. Bf4 {[%clk 0:03:00.4]} 10... d6 {[%clk 0:02:56]} 11. Qd2 {[%clk
0:03:00.1]} 11... h6 {[%clk 0:02:56]} 12. Rad1 {[%clk 0:02:59.8]} 12... e5
{[%clk 0:02:55.8]} 13. Be3 {[%clk 0:03:00.5]} 13... Bb4 {[%clk 0:02:56.2]} 14.
a3 {[%clk 0:02:38.1]} 14... Bxc3 {[%clk 0:02:54.5]} 15. Qxc3 {[%clk 0:02:38.3]}
15... Qxc3 {[%clk 0:02:54.2]} 16. bxc3 {[%clk 0:02:39.2]} 16... Ke7 {[%clk
0:02:46.9]} 17. f4 {[%clk 0:02:38.9]} 17... Bg4 {[%clk 0:01:39.8]} 18. Rb1
{[%clk 0:02:19.1]} 18... b5 {[%clk 0:01:35.2]} 19. h3 {[%clk 0:02:07.1]} 19...
Be2 {[%clk 0:01:34.2]} 20. Rf2 {[%clk 0:02:06.7]} 20... Bc4 {[%clk 0:01:34.4]}
21. g4 {[%clk 0:02:02.7]} 21... Rac8 {[%clk 0:01:30.8]} 22. g5 {[%clk
0:01:56.2]} 22... Nh5 {[%clk 0:01:26.6]} 23. fxe5 {[%clk 0:01:53.8]} 23... dxe5
{[%clk 0:01:27.5]} 24. Rf5 {[%clk 0:01:51.1]} 24... Be6 {[%clk 0:01:18.8]} 25.
Rxe5 {[%clk 0:01:51.1]} 25... hxg5 {[%clk 0:01:13.9]} 26. Bc5+ {[%clk
0:01:40.1]} 26... Kf6 {[%clk 0:01:11.9]} 27. Bd4 {[%clk 0:01:38.7]} 27... Kg6
{[%clk 0:01:12]} 28. Be3 {[%clk 0:01:23.2]} 28... Nf4 {[%clk 0:01:08.4]} 29.
Bxf4 {[%clk 0:01:16.4]} 29... gxf4 {[%clk 0:01:09.3]} 30. Rf1 {[%clk 0:01:16.5]}
30... Kf6 {[%clk 0:01:09.9]} 31. Rd5 {[%clk 0:01:11.7]} 31... Bxd5 {[%clk
0:01:09.7]} 32. exd5 {[%clk 0:01:12.6]} 32... g5 {[%clk 0:01:09]} 33. Rf3 {[%clk
0:01:09.9]} 33... Rhe8 {[%clk 0:01:06.2]} 34. d6 {[%clk 0:01:04.3]} 34... Rcd8
{[%clk 0:01:03.9]} 35. Rd3 {[%clk 0:01:03.8]} 35... Re6 {[%clk 0:01:04.2]} 36.
d7 {[%clk 0:01:04]} 36... Ke7 {[%clk 0:01:04.6]} 37. Bf3 {[%clk 0:01:02.9]}
37... f5 {[%clk 0:01:02.4]} 38. Rd5 {[%clk 0:00:59.4]} 38... Rxd7 {[%clk
0:00:59.8]} 39. Rxf5 {[%clk 0:00:59.4]} 39... Rd2 {[%clk 0:01:00.2]} 40. Kf1
{[%clk 0:00:56.2]} 40... Re3 {[%clk 0:01:00.5]} 41. Bg4 {[%clk 0:00:52.1]} 41...
Rxc3 {[%clk 0:00:54.7]} 42. Rxg5 {[%clk 0:00:47]} 42... Rcxc2 {[%clk 0:00:55]}
43. Re5+ {[%clk 0:00:41.9]} 43... Kf6 {[%clk 0:00:53.9]} 44. Re1 {[%clk
0:00:40.6]} 44... Kg5 {[%clk 0:00:52.7]} 45. Ra1 {[%clk 0:00:39]} 45... Kh4
{[%clk 0:00:52.6]} 46. a4 {[%clk 0:00:39.6]} 46... b4 {[%clk 0:00:52.7]} 47. Rb1
{[%clk 0:00:38]} 47... a5 {[%clk 0:00:52.3]} 48. Kg1 {[%clk 0:00:35.9]} 48...
Rc3 {[%clk 0:00:48.8]} 49. Rf1 {[%clk 0:00:31.5]} 49... Rg3+ {[%clk 0:00:46.5]}
50. Kh1 {[%clk 0:00:31.7]} 50... f3 {[%clk 0:00:46.9]} 51. Bxf3 {[%clk
0:00:11.5]} 51... Kxh3 {[%clk 0:00:32.3]} 52. Bg2+ {[%clk 0:00:05.6]} 52...
Rdxg2 {[%clk 0:00:29.5]} 53. Rf3 {[%clk 0:00:05.8]} 53... Rh2# {[%clk 0:00:29]}
0-1

[Event "Early-Titled-Tuesday-Blitz-April-23-2024"]
[Site "Chess.com"]
[Date "2024.04.23"]
[Round "1"]
[White "SHIVACalypso"]
[Black "biostatistician"]
[Result "0-1"]
[WhiteElo "2434"]
[BlackElo "2756"]
[TimeControl "180+1"]
[EndTime "8:07:40 PDT"]
[Termination "biostatistician won by checkmate"]

1. c4 {[%clk 0:03:00.9]} 1... Nf6 {[%clk 0:02:59]} 2. Nc3 {[%clk 0:02:58.9]}
2... g6 {[%clk 0:02:58.9]} 3. g3 {[%clk 0:02:57.4]} 3... Bg7 {[%clk 0:02:58.7]}
4. Bg2 {[%clk 0:02:58]} 4... O-O {[%clk 0:02:59.6]} 5. Nf3 {[%clk 0:02:58.7]}
5... b6 {[%clk 0:02:59.1]} 6. O-O {[%clk 0:02:58.7]} 6... Bb7 {[%clk 0:02:59.4]}
7. d4 {[%clk 0:02:59.3]} 7... Ne4 {[%clk 0:02:59.8]} 8. Qc2 {[%clk 0:02:59]}
8... Nxc3 {[%clk 0:02:59.5]} 9. Qxc3 {[%clk 0:02:59.9]} 9... c5 {[%clk 0:03:00]}
10. Be3 {[%clk 0:03:00.2]} 10... Nc6 {[%clk 0:03:00]} 11. Qd2 {[%clk 0:02:59.7]}
11... Nxd4 {[%clk 0:02:57.7]} 12. Nxd4 {[%clk 0:03:00.6]} 12... Bxg2 {[%clk
0:02:57.7]} 13. Kxg2 {[%clk 0:03:00.2]} 13... cxd4 {[%clk 0:02:57.2]} 14. Bxd4
{[%clk 0:03:01.1]} 14... Rc8 {[%clk 0:02:53.8]} 15. Bxg7 {[%clk 0:03:00.1]}
15... Kxg7 {[%clk 0:02:54.7]} 16. Qd4+ {[%clk 0:03:00.7]} 16... Kg8 {[%clk
0:02:52.5]} 17. Rfd1 {[%clk 0:03:01.1]} 17... d6 {[%clk 0:02:51.9]} 18. Rac1
{[%clk 0:03:01.6]} 18... Rc5 {[%clk 0:02:51.3]} 19. b3 {[%clk 0:02:58.1]} 19...
Qc7 {[%clk 0:02:47.8]} 20. Rc3 {[%clk 0:02:05.9]} 20... b5 {[%clk 0:02:41.2]}
21. Rdc1 {[%clk 0:02:05.7]} 21... Rc8 {[%clk 0:02:41.4]} 22. e4 {[%clk
0:02:01.1]} 22... Qa5 {[%clk 0:02:29.6]} 23. R3c2 {[%clk 0:01:41.9]} 23... Qa3
{[%clk 0:02:22.6]} 24. Qd3 {[%clk 0:01:34.5]} 24... bxc4 {[%clk 0:01:55.5]} 25.
Rxc4 {[%clk 0:01:35.1]} 25... Qxc1 {[%clk 0:01:49.4]} 26. Rxc1 {[%clk
0:01:34.2]} 26... Rxc1 {[%clk 0:01:50.3]} 27. Qd4 {[%clk 0:01:29.3]} 27... a5
{[%clk 0:01:47.1]} 28. e5 {[%clk 0:01:26.5]} 28... R1c2 {[%clk 0:01:32.5]} 29.
exd6 {[%clk 0:01:24.9]} 29... exd6 {[%clk 0:01:33.4]} 30. a3 {[%clk 0:01:11.6]}
30... R2c3 {[%clk 0:01:27.1]} 31. Qd5 {[%clk 0:00:46.9]} 31... h5 {[%clk
0:01:09.7]} 32. b4 {[%clk 0:00:31.9]} 32... axb4 {[%clk 0:01:10.6]} 33. axb4
{[%clk 0:00:32]} 33... R3c6 {[%clk 0:01:07.5]} 34. b5 {[%clk 0:00:30.9]} 34...
Rb6 {[%clk 0:01:07.3]} 35. h4 {[%clk 0:00:29.9]} 35... Rc5 {[%clk 0:01:02.4]}
36. Qa8+ {[%clk 0:00:27.3]} 36... Kg7 {[%clk 0:01:02.6]} 37. Qa1+ {[%clk
0:00:25.4]} 37... Kh7 {[%clk 0:00:49.9]} 38. Qf6 {[%clk 0:00:23.3]} 38... Rf5
{[%clk 0:00:49.9]} 39. Qd8 {[%clk 0:00:22.5]} 39... Rfxb5 {[%clk 0:00:46.2]} 40.
Qf8 {[%clk 0:00:20.1]} 40... Rf5 {[%clk 0:00:43.9]} 41. Kg1 {[%clk 0:00:17.5]}
41... Rb1+ {[%clk 0:00:43.1]} 42. Kg2 {[%clk 0:00:18.1]} 42... d5 {[%clk
0:00:34.4]} 43. f4 {[%clk 0:00:18.2]} 43... Rb2+ {[%clk 0:00:34]} 44. Kh3 {[%clk
0:00:17.5]} 44... Rb3 {[%clk 0:00:33.2]} 45. Qd6 {[%clk 0:00:18.1]} 45... Kg7
{[%clk 0:00:29]} 46. Kg2 {[%clk 0:00:18.7]} 46... Rd3 {[%clk 0:00:27.6]} 47. Qd8
{[%clk 0:00:18.1]} 47... Rf6 {[%clk 0:00:26.8]} 48. Qa5 {[%clk 0:00:16.6]} 48...
Re6 {[%clk 0:00:25.2]} 49. Qa1+ {[%clk 0:00:16.2]} 49... d4 {[%clk 0:00:25.2]}
50. Qb1 {[%clk 0:00:16.3]} 50... Rd2+ {[%clk 0:00:23.7]} 51. Kh3 {[%clk
0:00:16]} 51... Ree2 {[%clk 0:00:24]} 52. Qb4 {[%clk 0:00:14.9]} 52... Rh2#
{[%clk 0:00:22.9]} 0-1

[Event "Early-Titled-Tuesday-Blitz-April-23-2024"]
[Site "Chess.com"]
[Date "2024.04.23"]
[Round "1"]
[White "Rodalquilar"]
[Black "yonaltimur"]
[Result "1-0"]
[WhiteElo "2731"]
[BlackElo "2409"]
[TimeControl "180+1"]
[EndTime "8:07:40 PDT"]
[Termination "Rodalquilar won by resignation"]

1. d4 {[%clk 0:03:00.4]} 1... d5 {[%clk 0:02:59.7]} 2. Nf3 {[%clk 0:02:59.8]}
2... Nf6 {[%clk 0:02:58.1]} 3. Bf4 {[%clk 0:02:59.5]} 3... c5 {[%clk 0:02:57.4]}
4. e3 {[%clk 0:02:59.9]} 4... Nc6 {[%clk 0:02:56.4]} 5. c3 {[%clk 0:03:00.4]}
5... Qb6 {[%clk 0:02:54.7]} 6. Qc2 {[%clk 0:03:00.1]} 6... cxd4 {[%clk
0:02:47.7]} 7. exd4 {[%clk 0:02:59.9]} 7... Bf5 {[%clk 0:02:45]} 8. Qb3 {[%clk
0:03:00]} 8... e6 {[%clk 0:02:17.1]} 9. Nbd2 {[%clk 0:02:57.2]} 9... Be7 {[%clk
0:02:16.9]} 10. Be2 {[%clk 0:02:55.1]} 10... O-O {[%clk 0:02:16.8]} 11. O-O
{[%clk 0:02:55.2]} 11... h6 {[%clk 0:02:17.5]} 12. h3 {[%clk 0:02:55]} 12...
Rfc8 {[%clk 0:02:14.7]} 13. Rfe1 {[%clk 0:02:53.8]} 13... Na5 {[%clk 0:02:14.9]}
14. Qxb6 {[%clk 0:02:51.7]} 14... axb6 {[%clk 0:02:15.8]} 15. Ne5 {[%clk
0:02:50.6]} 15... g5 {[%clk 0:02:08]} 16. Be3 {[%clk 0:02:32.5]} 16... Ne4
{[%clk 0:02:06]} 17. g4 {[%clk 0:02:16.9]} 17... Bh7 {[%clk 0:01:58]} 18. Nxe4
{[%clk 0:01:38.6]} 18... Bxe4 {[%clk 0:01:58.9]} 19. f3 {[%clk 0:01:34]} 19...
Bh7 {[%clk 0:01:58.6]} 20. h4 {[%clk 0:01:27.9]} 20... Rc7 {[%clk 0:01:54.6]}
21. Bd3 {[%clk 0:01:00.1]} 21... Bxd3 {[%clk 0:01:42.5]} 22. Nxd3 {[%clk
0:01:00.4]} 22... Nc4 {[%clk 0:01:42.6]} 23. Bf2 {[%clk 0:00:52.5]} 23... Kg7
{[%clk 0:01:36.4]} 24. a3 {[%clk 0:00:51.7]} 24... Rh8 {[%clk 0:01:24.4]} 25.
Kg2 {[%clk 0:00:33.5]} 25... gxh4 {[%clk 0:00:58.8]} 26. Kh3 {[%clk 0:00:18.6]}
26... h5 {[%clk 0:00:56.6]} 27. g5 {[%clk 0:00:14.4]} 27... Bxg5 {[%clk
0:00:50.3]} 28. Rg1 {[%clk 0:00:14.7]} 28... Kf6 {[%clk 0:00:49.9]} 29. f4
{[%clk 0:00:14.4]} 29... Bh6 {[%clk 0:00:46.4]} 30. Bxh4+ {[%clk 0:00:13.9]}
30... Kf5 {[%clk 0:00:46.5]} 31. Rae1 {[%clk 0:00:14.6]} 31... f6 {[%clk
0:00:41.5]} 32. Re2 {[%clk 0:00:15.1]} 32... Rg7 {[%clk 0:00:39.7]} 33. Rge1
{[%clk 0:00:14.4]} 33... Re8 {[%clk 0:00:36.8]} 34. Nb4 {[%clk 0:00:14.3]} 34...
Bxf4 {[%clk 0:00:31.3]} 35. Nxd5 {[%clk 0:00:14.2]} 35... Bg5 {[%clk 0:00:28.7]}
36. Rf1+ {[%clk 0:00:08]} 36... Kg6 {[%clk 0:00:27.4]} 37. Nxf6 {[%clk
0:00:08.5]} 37... Rf8 {[%clk 0:00:22.3]} 38. Rg2 {[%clk 0:00:08.8]} 38... Kh6
{[%clk 0:00:11.4]} 39. Bxg5+ {[%clk 0:00:09]} 39... Rxg5 {[%clk 0:00:11.4]} 40.
Rxg5 {[%clk 0:00:09.9]} 40... Rxf6 {[%clk 0:00:09.7]} 41. Rxf6+ {[%clk
0:00:09.2]} 41... Kxg5 {[%clk 0:00:10.6]} 42. Rxe6 {[%clk 0:00:09.7]} 1-0

[Event "Early-Titled-Tuesday-Blitz-April-23-2024"]
[Site "Chess.com"]
[Date "2024.04.23"]
[Round "1"]
[White "KorolDimitriy75"]
[Black "Sadykov_Ramil"]
[Result "1/2-1/2"]
[WhiteElo "2330"]
[BlackElo "2634"]
[TimeControl "180+1"]
[EndTime "8:07:40 PDT"]
[Termination "Game drawn by repetition"]

1. d4 {[%clk 0:03:00.9]} 1... d6 {[%clk 0:02:59.6]} 2. Nf3 {[%clk 0:03:00.1]}
2... g6 {[%clk 0:02:56.6]} 3. c4 {[%clk 0:03:00.5]} 3... Bg7 {[%clk 0:02:55.4]}
4. Nc3 {[%clk 0:03:01.1]} 4... Bg4 {[%clk 0:02:51.9]} 5. e3 {[%clk 0:03:00.9]}
5... e6 {[%clk 0:02:40.7]} 6. Be2 {[%clk 0:02:59.5]} 6... Ne7 {[%clk 0:02:36]}
7. O-O {[%clk 0:02:59.1]} 7... O-O {[%clk 0:02:35.7]} 8. Rb1 {[%clk 0:02:52.5]}
8... c5 {[%clk 0:02:31.4]} 9. d5 {[%clk 0:02:23.5]} 9... exd5 {[%clk 0:02:18.6]}
10. cxd5 {[%clk 0:02:24.4]} 10... Bxf3 {[%clk 0:02:12.3]} 11. Bxf3 {[%clk
0:02:24.3]} 11... Nd7 {[%clk 0:02:12.8]} 12. Re1 {[%clk 0:02:06.6]} 12... f5
{[%clk 0:02:10.8]} 13. Qc2 {[%clk 0:01:46.8]} 13... a6 {[%clk 0:01:59.7]} 14. a4
{[%clk 0:01:46.3]} 14... Rb8 {[%clk 0:02:00]} 15. Be2 {[%clk 0:01:42.5]} 15...
Kh8 {[%clk 0:01:46.9]} 16. b3 {[%clk 0:01:39.6]} 16... Ng8 {[%clk 0:01:44.9]}
17. Bb2 {[%clk 0:01:37.9]} 17... Ngf6 {[%clk 0:01:44.7]} 18. Rbd1 {[%clk
0:01:36]} 18... Re8 {[%clk 0:01:26.8]} 19. h3 {[%clk 0:01:35.5]} 19... Ne5
{[%clk 0:01:26.1]} 20. f4 {[%clk 0:01:21.7]} 20... Ned7 {[%clk 0:01:19.6]} 21.
Bd3 {[%clk 0:01:11.1]} 21... Re7 {[%clk 0:01:10.5]} 22. e4 {[%clk 0:00:59.6]}
22... fxe4 {[%clk 0:01:08.2]} 23. Nxe4 {[%clk 0:01:00.5]} 23... Nxe4 {[%clk
0:00:58.1]} 24. Bxg7+ {[%clk 0:00:59.5]} 24... Kxg7 {[%clk 0:00:55.3]} 25. Bxe4
{[%clk 0:00:58.6]} 25... Qf8 {[%clk 0:00:50.8]} 26. Bf3 {[%clk 0:00:30.3]} 26...
Rbe8 {[%clk 0:00:48.4]} 27. Qc3+ {[%clk 0:00:12.8]} 27... Qf6 {[%clk 0:00:38.5]}
28. Qxf6+ {[%clk 0:00:11.4]} 28... Nxf6 {[%clk 0:00:39.4]} 29. Kf2 {[%clk
0:00:11]} 29... b5 {[%clk 0:00:22.4]} 30. g4 {[%clk 0:00:09.2]} 30... Rxe1
{[%clk 0:00:12.5]} 31. Rxe1 {[%clk 0:00:08.7]} 31... Rxe1 {[%clk 0:00:13.4]} 32.
Kxe1 {[%clk 0:00:09.1]} 32... bxa4 {[%clk 0:00:10.8]} 33. bxa4 {[%clk
0:00:09.3]} 33... a5 {[%clk 0:00:11.7]} 34. Kd2 {[%clk 0:00:09.1]} 34... Nd7
{[%clk 0:00:10.4]} 35. Kc3 {[%clk 0:00:06.6]} 35... Nb6 {[%clk 0:00:10]} 36. Kb3
{[%clk 0:00:06.8]} 36... Kf6 {[%clk 0:00:07.5]} 37. h4 {[%clk 0:00:06.6]} 37...
h6 {[%clk 0:00:06.9]} 38. Be4 {[%clk 0:00:06.4]} 38... g5 {[%clk 0:00:05.6]} 39.
fxg5+ {[%clk 0:00:06.5]} 39... hxg5 {[%clk 0:00:06]} 40. h5 {[%clk 0:00:07.4]}
40... Ke5 {[%clk 0:00:04.2]} 41. Bf3 {[%clk 0:00:07]} 41... Kf6 {[%clk 0:00:02]}
42. Be4 {[%clk 0:00:07]} 42... Ke5 {[%clk 0:00:02.2]} 43. Bf3 {[%clk 0:00:07.3]}
43... Kf6 {[%clk 0:00:01.3]} 44. Be4 {[%clk 0:00:07.6]} 1/2-1/2

[Event "Early-Titled-Tuesday-Blitz-April-23-2024"]
[Site "Chess.com"]
[Date "2024.04.23"]
[Round "1"]
[White "platy3"]
[Black "kacperkarwowski"]
[Result "1-0"]
[WhiteElo "2875"]
[BlackElo "2496"]
[TimeControl "180+1"]
[EndTime "8:07:44 PDT"]
[Termination "platy3 won by resignation"]

1. e4 {[%clk 0:03:00.9]} 1... c6 {[%clk 0:02:52.3]} 2. Nf3 {[%clk 0:02:58.6]}
2... d5 {[%clk 0:02:52.2]} 3. d3 {[%clk 0:02:59.5]} 3... dxe4 {[%clk 0:02:49.7]}
4. dxe4 {[%clk 0:02:59.3]} 4... Qxd1+ {[%clk 0:02:50.6]} 5. Kxd1 {[%clk
0:03:00.1]} 5... Bg4 {[%clk 0:02:48.7]} 6. Be2 {[%clk 0:02:59.4]} 6... Bxf3
{[%clk 0:02:48.5]} 7. Bxf3 {[%clk 0:02:59.4]} 7... e5 {[%clk 0:02:48.7]} 8. c3
{[%clk 0:02:55.5]} 8... Nd7 {[%clk 0:02:48.2]} 9. Kc2 {[%clk 0:02:55]} 9... Bc5
{[%clk 0:02:44.8]} 10. Rf1 {[%clk 0:02:54]} 10... a5 {[%clk 0:02:43.9]} 11. Nd2
{[%clk 0:02:51.2]} 11... Ne7 {[%clk 0:02:39.8]} 12. a4 {[%clk 0:02:50.4]} 12...
Ng6 {[%clk 0:02:28.4]} 13. g3 {[%clk 0:02:49.2]} 13... Ngf8 {[%clk 0:02:24.4]}
14. Nc4 {[%clk 0:02:48.2]} 14... Ne6 {[%clk 0:02:21.6]} 15. Bg4 {[%clk
0:02:48.1]} 15... Ke7 {[%clk 0:02:20.2]} 16. f4 {[%clk 0:02:46.6]} 16... f6
{[%clk 0:02:05.4]} 17. Bd2 {[%clk 0:02:38.3]} 17... h5 {[%clk 0:01:56.8]} 18.
Bf5 {[%clk 0:02:22.3]} 18... h4 {[%clk 0:01:51.5]} 19. Rad1 {[%clk 0:02:13.3]}
19... hxg3 {[%clk 0:01:44.7]} 20. hxg3 {[%clk 0:02:14.2]} 20... Rh2 {[%clk
0:01:44.4]} 21. Rh1 {[%clk 0:02:12.5]} 21... Rah8 {[%clk 0:01:43.6]} 22. Rxh2
{[%clk 0:02:05.4]} 22... Rxh2 {[%clk 0:01:44.5]} 23. Nxa5 {[%clk 0:02:05.8]}
23... Nd8 {[%clk 0:01:06.9]} 24. Kb1 {[%clk 0:01:55.5]} 24... b6 {[%clk
0:01:02.7]} 25. Nc4 {[%clk 0:01:37.9]} 25... Ne6 {[%clk 0:00:24]} 26. b4 {[%clk
0:01:26.7]} 26... Bf2 {[%clk 0:00:15.4]} 27. Be3 {[%clk 0:01:27.4]} 27... Bxg3
{[%clk 0:00:06.6]} 28. fxe5 {[%clk 0:01:21.8]} 28... Bxe5 {[%clk 0:00:07.5]} 29.
a5 {[%clk 0:01:04.4]} 29... bxa5 {[%clk 0:00:06.7]} 30. bxa5 {[%clk 0:01:05.3]}
30... Nb8 {[%clk 0:00:02]} 31. Bd4 {[%clk 0:00:23.2]} 31... Bxd4 {[%clk
0:00:01.8]} 32. cxd4 {[%clk 0:00:24.1]} 32... Nc7 {[%clk 0:00:02.3]} 33. d5
{[%clk 0:00:24.1]} 33... cxd5 {[%clk 0:00:02.3]} 34. exd5 {[%clk 0:00:25]} 34...
Nb5 {[%clk 0:00:03]} 35. d6+ {[%clk 0:00:24.9]} 35... Kd8 {[%clk 0:00:03.5]} 36.
Rd3 {[%clk 0:00:20.2]} 36... Rh4 {[%clk 0:00:03.7]} 37. Be6 {[%clk 0:00:15.6]}
37... Re4 {[%clk 0:00:04]} 38. Bd5 {[%clk 0:00:14.1]} 38... Re1+ {[%clk
0:00:04.3]} 39. Kb2 {[%clk 0:00:14.3]} 39... Na6 {[%clk 0:00:04.8]} 40. Bc6
{[%clk 0:00:11.4]} 40... Nc5 {[%clk 0:00:04.9]} 41. Rd5 {[%clk 0:00:09.8]} 41...
Na4+ {[%clk 0:00:05.1]} 42. Kb3 {[%clk 0:00:09.7]} 42... Nbc3 {[%clk 0:00:05.6]}
43. Rh5 {[%clk 0:00:08.3]} 43... Rb1+ {[%clk 0:00:05.8]} 44. Kc2 {[%clk
0:00:08.8]} 44... Rb2+ {[%clk 0:00:06.3]} 45. Kd3 {[%clk 0:00:09.4]} 45... Nc5+
{[%clk 0:00:02.9]} 46. Kxc3 {[%clk 0:00:08.4]} 46... Rb3+ {[%clk 0:00:03.4]} 47.
Kc2 {[%clk 0:00:09]} 47... Ne6 {[%clk 0:00:04.3]} 48. Rh8+ {[%clk 0:00:08.5]}
1-0